Workbook

Sheet 업무여유도 양식
A2: 업무여유도
A3: ( 참여분야 : 사업책임기술자(도시계획), 장영모
A4: (중복도 산정 기준일) | C4: 2016-09-28
A5: No. | B5: 용역명 | C5: 총사업금액 (백만원) | D5: 착수일 | E5: 준공일 | F5: 잔여 일수 | G5: 총계약 일수 | H5: 중복일수 (개월)
A6: 1 | B6: 서울B지구 보금자리주택지구 조사설계용역 | C6: 4177 | D6: 2009-08-10 | E6: 2017-04-30 | F6: 215 | G6: =E6-D6 -> 2820 | H6: =ROUNDDOWN(F6/30,1) -> 7.1
B7: 계 | H7: =SUM(H6:H6) -> 7.1
A9: ( 참여분야 : 도시분야책임기술자, 김태형)
A10: (중복도 산정 기준일) | C10: 2016-09-28
A11: No. | B11: 용역명 | C11: 총사업금액 (백만원) | D11: 착수일 | E11: 준공일 | F11: 잔여 일수 | G11: 총계약 일수 | H11: 중복일수 (개월)
A12: 1 | B12: 수원 R&D Science Park 조성사업 조사설계용역 ※용역중지-16.01.27 | C12: 1575 | D12: 2015-09-08 | E12: 2016-09-07 | F12: 225 | G12: =E12-D12 -> 365 | H12: ※공고일기준 3개월이상 용역중지
A13: 2 | B13: 강릉 도시관리계획(용도지역, 체육시설)결정 변경 및 실시 계획 수립용역 ※용역중지-16.01.06 | C13: 430 | D13: 2015-03-09 | E13: 2017-03-07 | F13: 427 | G13: =E13-D13 -> 729 | H13: ※공고일기준 3개월이상 용역중지
A14: 3 | B14: 남구 도시첨단산업단지 조성사업 조사설계 용역 | C14: 1757 | D14: 2015-07-22 | E14: 2017-01-18 | F14: 113 | G14: 546 | H14: =ROUNDDOWN(F14/30,1) -> 3.7
A15: 4 | B15: 선단동 체육공원 조성계획 수립 및 조성사업 기본 및 실시설계 용역 | C15: 373 | D15: 2016-07-11 | E15: 2017-03-07 | F15: 161 | G15: 239 | H15: =ROUNDDOWN(F15/30,1) -> 5.3
A16: 5 | B16: 중장기 신규사업 발굴용역 | C16: 178 | D16: 2016-06-01 | E16: 2017-11-30 | F16: 429 | G16: 547 | H16: =ROUNDDOWN(F16/30,1) -> 14.3
A17: 6 | B17: 가재울 지구단위계획 재정비 수립용역 | C17: 160 | D17: 2016-05-09 | E17: 2017-05-08 | F17: 223 | G17: 364 | H17: =ROUNDDOWN(F17/30,1) -> 7.4
B18: 계 | H18: =SUM(H12:H17) -> 30.7
A20: ( 참여분야 : 도로․공항책임기술자, 김연호)
A21: (중복도 산정 기준일) | C21: 2016-09-28
A22: No. | B22: 용역명 | C22: 총사업금액 (백만원) | D22: 착수일 | E22: 준공일 | F22: 잔여 일수 | G22: 총계약 일수 | H22: 중복일수 (개월)
A23: 1 | B23: 충청내륙고속화(제3-1공구) 도로건설공사 실시설계용역 | C23: 1655 | D23: 2015-05-15 | E23: 2017-05-03 | F23: 218 | G23: =E23-D23 -> 719 | H23: =ROUNDDOWN(F23/30,1) -> 7.2
A24: 2 | B24: 제천 제3산업단지 개발계획변경 및 실시계획수립 용역 | C24: 1658 | D24: 2016-08-12 | E24: 2017-08-11 | F24: 318 | G24: =E24-D24 -> 364 | H24: =ROUNDDOWN(F24/30,1) -> 10.6
A25: 3 | B25: 포항 도시기본계획수립 및 도시관리계획(재정비)용역 | C25: 1612 | D25: 2016-08-05 | E25: 2019-08-04 | F25: 1041 | G25: 1094 | H25: =ROUNDDOWN(F25/30,1) -> 34.7
B26: 계 | H26: =SUM(H23:H24) -> 17.8
A28: ( 참여분야 : 토질․지질분야책임기술자, 조병기)
A29: (중복도 산정 기준일) | C29: 2016-09-28
A30: No. | B30: 용역명 | C30: 총사업금액 (백만원) | D30: 착수일 | E30: 준공일 | F30: 잔여 일수 | G30: 총계약 일수 | H30: 중복일수 (개월)
A31: 1 | B31: 부산에코델타시티1구간실시설계용역 ※용역중지-16.08.22 | C31: 2521 | D31: 2015-12-31 | E31: 2017-11-04 | F31: 440 | G31: =E31-D31 -> 674 | H31: =ROUNDDOWN(F31/30,1) -> 14.6
A32: 2 | B32: 충주북부산업단지계획 수립용역 | C32: 3239 | D32: 2016-08-04 | E32: 2018-02-03 | F32: 494 | G32: =E32-D32 -> 548 | H32: =ROUNDDOWN(F32/30,1) -> 16.4
B33: 계 | H33: =SUM(H31:H32) -> 31
A35: ( 참여분야 :토목구조책임기술자, 최해곤)
A36: (중복도 산정 기준일) | C36: 2016-09-28
A37: No. | B37: 용역명 | C37: 총사업금액 (백만원) | D37: 착수일 | E37: 준공일 | F37: 잔여 일수 | G37: 총계약 일수 | H37: 중복일수 (개월)
A38: 1 | B38: 행복주택 잠실지구 조사설계용역 ※용역중지-15.05.15 | C38: 1936 | D38: 2014-05-16 | E38: 2019-05-15 | F38: 1462 | G38: =E38-D38 -> 1825 | H38: ※공고일기준 3개월이상 용역중지
A39: 2 | B39: 유성 광역복합환승센터 개발계획 수립 및 실시설계용역 | C39: 736 | D39: 2014-08-01 | E39: 2017-07-22 | F39: 298 | G39: =E39-D39 -> 1086 | H39: =ROUNDDOWN(F39/30,1) -> 9.9
A40: 3 | B40: 탄천처리구역 노후관거 종합실태 조사 및 기본설계 용역 | C40: 2156 | D40: 2015-07-06 | E40: 2016-12-30 | F40: 94 | G40: 543 | H40: =ROUNDDOWN(F40/30,1) -> 3.1
A41: 4 | B41: 충주북부산업단지계획 수립용역 | C41: 3239 | D41: 2016-08-04 | E41: 2018-02-03 | F41: 494 | G41: 548 | H41: =ROUNDDOWN(F41/30,1) -> 16.4
A42: 5 | B42: 2016년 노후불량 하수관로 조사, 기본 및 실시설계 용역(중랑·난지처리구역) | C42: 890 | D42: 2016-08-09 | E42: 2017-04-05 | F42: 190 | G42: 239 | H42: =ROUNDDOWN(F42/30,1) -> 6.3
B43: 계 | H43: =SUM(H38:H42) -> 35.7
A45: ( 참여분야 :상하수도분야책임기술자,김성태)
A46: (중복도 산정 기준일) | C46: 2016-09-28
A47: No. | B47: 용역명 | C47: 총사업금액 (백만원) | D47: 착수일 | E47: 준공일 | F47: 잔여 일수 | G47: 총계약 일수 | H47: 중복일수 (개월)
A48: 1 | B48: 김포고촌 기업형임대주택 공급촉진지구 조사설계용역 | C48: 1318 | D48: 2016-09-09 | E48: 2020-03-08 | F48: 1258 | G48: =E48-D48 -> 1276 | H48: =ROUNDDOWN(F48/30,1) -> 41.9
B49: 계 | H49: =SUM(H48:H48) -> 41.9
